bitfinex-derivatives/quotes_ETHF0:USTF0_20250828
["timestamp","ask_amount","ask_price","bid_price","bid_amount"]
[1756389519087,0.96601995,4572.5,4571.9,31.503]
[1756389519289,3.6936,4572.0,4571.9,31.503]
[1756389519483,0.4858,4571.9,4571.8,21.226]
[1756389519688,0.4858,4571.9,4571.4,1.57506171]
[1756389519884,0.4858,4571.9,4571.6,21.224]
[1756389520190,3.2078,4572.0,4571.7,0.4884]
[1756389520391,3.2078,4572.0,4571.6,21.224]
[1756389520785,3.2078,4572.0,4571.4,1.57506171]
[1756389521091,0.4858,4571.9,4571.4,1.57506171]
[1756389521293,3.2078,4572.0,4571.4,1.57506171]
[1756389521294,3.2078,4572.0,4571.5,0.4884]
[1756389521496,0.4858,4571.9,4571.5,0.4884]
[1756389521787,0.4858,4571.9,4571.5,1.57506171]
[1756389521999,3.2078,4572.0,4571.6,0.4884]
[1756389522181,3.2078,4572.0,4571.8,1.57506171]
[1756389522385,3.2078,4572.0,4571.9,21.7094]
[1756389522889,3.6936,4572.0,4571.7,1.57506171]
[1756389523091,3.2078,4572.0,4571.7,21.221]
[1756389523281,0.4858,4571.9,4571.7,21.221]
[1756389523481,3.2078,4572.0,4571.7,21.221]
[1756389523685,0.4858,4571.9,4571.2,1.57506171]
[1756389523886,0.4858,4571.4,4571.2,21.221]
[1756389524182,0.4858,4571.4,4570.5,4.78286171]
[1756389524383,0.4858,4570.9,4570.5,21.219]
[1756389524588,0.4858,4570.9,4570.3,1.57506171]
[1756389524788,3.2078,4570.5,4570.2,21.219]
[1756389525087,3.6936,4570.5,4570.2,21.219]
[1756389525593,3.6936,4570.5,4570.2,21.7074]
[1756389525791,3.2078,4570.5,4570.2,21.219]
[1756389525988,0.4858,4570.4,4569.9,1.57506171]
[1756389526188,0.4858,4570.4,4570.1,0.4884]
[1756389526390,3.2078,4570.5,4569.9,22.79306171]
[1756389526586,3.2078,4570.0,4569.9,22.79306171]
[1756389526790,3.6936,4570.0,4569.9,21.218]
[1756389527188,3.2078,4570.0,4569.4,22.79206171]
[1756389527393,3.6936,4569.5,4569.4,21.217]
[1756389527793,0.4858,4569.4,4568.9,52.722]
[1756389527994,3.6936,4569.0,4568.9,52.722]
[1756389528492,3.6936,4569.0,4568.9,53.2104]
[1756389528696,3.6936,4569.0,4568.9,21.218]
[1756389529396,3.2078,4569.0,4568.9,23.28146171]
[1756389529791,3.2078,4569.0,4568.9,25.7064]
[1756389530786,3.2078,4569.0,4568.9,21.7064]
[1756389532297,3.6936,4569.0,4568.9,21.7064]
[1756389532493,3.2078,4569.0,4568.9,1.57655864]
[1756389532801,3.2078,4569.0,4568.9,0.4884]
[1756389533199,3.2078,4569.0,4568.9,21.7034]
[1756389533804,3.2078,4569.0,4568.9,23.27994374]
[1756389533993,3.2078,4569.0,4568.9,21.7034]
[1756389534902,2.7194,4569.0,4568.9,21.7034]
[1756389535103,3.2078,4569.5,4568.9,21.7034]
[1756389535306,0.4858,4569.4,4569.1,1.57648212]
[1756389535805,3.2078,4569.5,4569.0,22.78948212]
[1756389536199,0.4858,4569.4,4569.0,22.78948212]
[1756389536607,3.2078,4569.5,4569.0,22.78948212]
[1756389537296,3.2078,4569.5,4569.1,1.57648212]
[1756389537799,3.2078,4569.5,4569.2,21.211]
[1756389538103,0.3076,4569.3,4569.2,21.211]
[1756389538306,0.7934,4569.3,4569.2,21.211]
[1756389539093,3.2078,4569.5,4569.2,21.211]
[1756389539304,3.6936,4569.5,4569.2,21.211]
[1756389539501,0.4858,4569.4,4569.2,21.211]
[1756389539704,3.2078,4569.5,4569.2,21.211]
[1756389540100,3.6936,4569.5,4569.2,21.211]
[1756389540307,3.2078,4569.5,4569.2,23.18138212]
[1756389540602,3.2078,4569.5,4569.3,0.39389]
[1756389540805,0.4858,4570.6,4569.4,0.30764051]
[1756389540806,3.2078,4570.3,4569.4,0.30764051]
[1756389541013,3.2078,4570.3,4570.0,1.57618021]
[1756389541207,3.2078,4570.3,4570.1,22.78418021]
[1756389541600,3.2078,4570.3,4570.1,1.57618021]
[1756389541805,3.2078,4570.3,4570.1,16.40518021]
[1756389542005,3.2078,4570.3,4570.2,1.57618021]
[1756389542507,3.2078,4570.3,4570.1,16.40518021]
[1756389542703,0.7934,4570.2,4570.1,16.40518021]
[1756389542902,3.2078,4570.3,4570.1,16.40518021]
[1756389543103,0.4858,4570.2,4570.1,16.40518021]
[1756389543408,3.2078,4570.3,4570.1,14.829]
[1756389543606,3.2078,4570.3,4570.2,1.5761042]
[1756389544903,3.6936,4570.8,4570.2,1.5761042]
[1756389545098,3.2078,4570.8,4570.3,1.5761042]
[1756389545301,3.2078,4570.8,4570.4,1.5761042]
[1756389545502,3.6936,4571.3,4570.7,1.5761042]
[1756389545822,3.2078,4571.3,4570.8,22.7771042]
[1756389546013,3.2078,4571.3,4570.9,0.30760032]
[1756389546309,0.54207428,4571.2,4571.0,0.30760032]
[1756389546603,3.6751,4571.3,4571.1,0.30760032]
[1756389546821,0.54219337,4571.2,4570.8,21.201]
[1756389547003,0.54219337,4571.1,4570.9,0.30566607]
[1756389547211,3.2078,4571.3,4571.0,0.30566607]
[1756389547412,0.54238112,4571.2,4571.1,0.30566607]
[1756389547708,1.00968112,4571.2,4571.1,0.30566607]
[1756389548406,1.31228112,4571.2,4571.1,0.30566607]
[1756389548801,0.54238112,4571.2,4571.1,0.30566607]
[1756389549199,1.31228112,4571.2,4571.1,0.30566607]
[1756389549602,1.00968112,4571.2,4571.1,0.30566607]
[1756389550407,1.31228112,4571.2,4571.1,0.30566607]
[1756389551311,1.00968112,4571.2,4571.1,0.30566607]
[1756389551612,0.54238112,4571.2,4571.1,0.30566882]
[1756389552510,0.5303333,4571.2,4571.1,21.49366882]
[1756389552821,1.3002333,4571.2,4571.1,21.49366882]
[1756389553115,1.3002333,4571.2,4571.1,0.30566882]
[1756389557418,0.5303333,4571.2,4571.1,0.30566882]
[1756389557720,0.9976333,4571.2,4571.1,0.30566882]
[1756389558317,0.5303333,4571.2,4571.1,0.30566882]
[1756389558819,3.2078,4571.3,4571.1,0.30566882]
[1756389559018,3.9777,4571.3,4571.2,0.30566882]
[1756389559219,4.52526354,4571.3,4571.2,0.30566882]
[1756389561223,4.52526354,4571.3,4571.2,0.3056623]
[1756389563020,3.75536354,4571.3,4571.2,0.3056623]
[1756389563323,4.22266354,4571.3,4571.2,0.3056623]
[1756389563525,4.52526354,4571.3,4571.2,0.3056623]
[1756389564826,4.22266354,4571.3,4571.2,0.3056623]
[1756389565022,4.22266354,4571.3,4571.2,0.6994023]
[1756389565023,3.2078,4571.3,4571.2,0.6994023]
[1756389565229,0.4673,4571.7,4571.2,0.6994023]
[1756389565425,0.54769794,4571.6,4571.4,0.39372]
[1756389565729,3.2078,4571.8,4571.5,0.3056623]
[1756389565926,3.2078,4571.8,4571.6,21.4686623]
[1756389566122,3.9777,4571.8,4571.7,21.4686623]
[1756389566322,4.52530739,4571.8,4571.7,21.4686623]
[1756389566730,4.52530739,4571.8,4571.7,0.3056623]
[1756389566925,4.52530739,4571.8,4571.7,21.4666623]
[1756389567429,4.52530739,4571.8,4571.7,21.4656623]
[1756389568329,0.54760739,4571.8,4571.7,21.4656623]
[1756389568634,3.6751,4572.3,4571.7,21.8593523]
[1756389568929,0.54761075,4572.2,4572.0,0.39367]
[1756389569122,0.4673,4572.7,4572.1,0.3056623]
[1756389569323,0.4673,4572.5,4572.2,0.3056623]
[1756389569524,0.54765759,4572.4,4572.3,21.4606623]
[1756389569719,0.7699,4572.4,4572.3,21.4606623]
[1756389569928,1.31755759,4572.4,4572.3,21.4606623]
[1756389570230,1.31755759,4572.4,4572.3,21.4596623]
[1756389571232,1.31755759,4572.4,4572.3,21.46222006]
[1756389574743,1.31755759,4572.4,4572.3,0.30822006]
[1756389575340,0.3026,4571.6,4571.5,21.135]
[1756389575636,0.54765759,4571.6,4571.5,0.2988]
[1756389575841,0.4673,4571.8,4571.5,0.2988]
[1756389576140,0.54783917,4571.7,4571.6,0.2784]
[1756389576336,1.30923917,4571.7,4571.6,0.5918]
[1756389576536,0.7614,4571.7,4571.6,0.5918]
[1756389577339,0.4687,4572.3,4571.6,0.5918]
[1756389577645,0.4687,4572.3,4571.4,21.142]
[1756389577646,0.54777812,4572.2,4572.1,0.5918]
[1756389577935,0.54777812,4572.2,4572.1,21.7298]
[1756389578139,0.4687,4572.7,4572.6,0.3134]
[1756389578342,0.54783872,4572.7,4572.6,0.5918]
[1756389579342,1.30923872,4572.7,4572.6,21.7258]
[1756389579731,0.54783872,4572.7,4572.6,21.7258]
[1756389579940,1.01653872,4572.7,4572.6,21.7258]
[1756389580141,1.30923872,4572.7,4572.6,21.7258]
[1756389580341,1.30923872,4572.7,4572.6,0.3134]
[1756389580547,1.30923872,4572.7,4572.6,15.9594]
[1756389580939,0.54783872,4572.7,4572.6,16.2378]
[1756389581237,3.2078,4573.4,4573.3,0.3134]
[1756389581443,3.75567537,4573.4,4573.3,21.7228]
[1756389582046,0.54787537,4573.4,4573.3,21.7198]
[1756389583044,0.39354,4573.5,4573.4,0.2784]
[1756389583246,0.39354,4573.5,4573.4,0.5918]
[1756389585345,0.68624,4573.5,4573.4,0.5918]
[1756389585542,1.15494,4573.5,4573.4,0.5918]
[1756389586039,0.39354,4573.5,4573.4,0.5918]
[1756389586742,3.6765,4575.0,4574.3,0.2784]
[1756389586940,3.6765,4575.0,4573.5,0.98385]
[1756389586941,0.39344,4574.8,4574.6,0.3134]
[1756389587142,0.39344,4574.8,4574.7,0.2784]
[1756389587342,0.39344,4574.8,4574.7,0.5918]
[1756389589048,0.86214,4574.8,4574.7,0.5918]
[1756389589550,0.39344,4574.8,4574.7,0.5918]
[1756389589750,0.39346,4574.5,4574.4,21.3954]
[1756389589950,0.39346,4574.5,4574.4,21.7088]
[1756389590252,1.15486,4574.5,4574.4,21.6988]
[1756389590442,0.39346,4574.5,4574.4,21.6988]
[1756389590844,1.15486,4574.5,4574.4,21.4194]
[1756389591050,0.86218,4574.2,4574.1,31.503]
[1756389591252,0.86218,4574.2,4574.1,53.09141458]
[1756389591457,0.39348,4574.2,4574.1,53.09141458]
[1756389591951,0.86218,4574.2,4574.1,52.81101458]
[1756389592151,0.86218,4574.2,4574.1,31.503]
[1756389592347,0.86218,4574.2,4574.1,52.604]
[1756389592564,0.39348,4574.2,4574.1,52.8824]
[1756389592951,0.86218,4574.2,4574.1,52.8824]
[1756389593150,0.86218,4574.2,4574.1,52.604]
[1756389593657,0.39348,4574.2,4574.1,52.8824]
[1756389594647,3.2078,4575.0,4574.1,31.503]
[1756389594951,0.39348,4574.3,4574.2,21.6868]
[1756389595547,0.4687,4574.8,4574.5,0.39345]
[1756389595748,3.2078,4576.5,4575.7,0.2784]
[1756389595954,3.2078,4576.5,4576.2,0.2784]
[1756389596149,1.15469,4576.4,4576.3,7.431]
[1756389596553,0.4687,4576.3,4575.6,0.5918]
[1756389596862,0.86205,4575.8,4575.7,21.6828]
[1756389597357,1.15475,4575.8,4575.7,0.5918]
[1756389597555,1.15475,4575.8,4575.7,21.4024]
[1756389597744,1.15475,4575.8,4575.7,0.5918]
[1756389598056,0.39335,4575.8,4575.7,21.6788]
[1756389599565,0.39335,4575.8,4575.7,0.5918]
[1756389599752,0.39334,4575.9,4575.7,21.6758]
[1756389599958,0.4687,4576.4,4576.3,0.3134]
[1756389600262,3.2078,4577.0,4576.9,0.7659]
[1756389600263,0.39325,4577.0,4576.9,0.7659]
[1756389600457,0.39322,4577.3,4576.9,21.3944]
[1756389600656,0.98271,4578.9,4578.1,0.3134]
[1756389600864,3.60081,4579.7,4578.5,0.39311]
[1756389601055,3.3078,4580.2,4578.8,0.4525]
[1756389601254,0.39306,4579.2,4579.1,0.4525]
[1756389601555,0.98253,4579.7,4578.6,1.96703736]
[1756389601556,0.98266,4579.1,4578.6,1.96703736]
[1756389601753,0.39309,4578.8,4578.7,21.076]
[1756389602155,0.86179,4578.8,4578.2,0.4525]
[1756389602363,0.86179,4578.8,4578.1,45.97483736]
[1756389602364,0.4687,4578.2,4578.1,5.17483736]
[1756389602555,0.4687,4578.2,4578.1,24.2808]
[1756389602854,0.4687,4578.2,4578.0,31.488]
[1756389602855,0.86185,4578.1,4578.0,31.488]
[1756389603061,0.86185,4578.1,4578.0,53.0135]
[1756389603259,0.39315,4578.1,4578.0,53.0135]
[1756389603657,0.4687,4578.8,4578.0,55.7688]
[1756389603864,0.4687,4579.3,4578.7,0.4525]
[1756389604059,0.39307,4579.0,4578.9,0.4525]
[1756389604257,0.98259,4579.5,4578.6,3.6603]
[1756389604258,0.3931,4578.7,4578.6,3.6603]
[1756389604457,0.39308,4578.9,4578.6,3.2078]
[1756389604666,0.39309,4578.8,4578.7,0.4525]
[1756389604860,0.39311,4578.5,4578.4,1.96703736]
[1756389605164,0.39311,4578.5,4578.4,21.5195]
[1756389605362,1.45144,4578.7,4578.0,33.45503736]
[1756389605558,0.39314,4578.2,4578.1,22.63715167]
[1756389605754,0.86184,4578.2,4578.1,22.63715167]
[1756389606258,3.2078,4579.0,4578.1,23.09375167]
[1756389606564,3.6542,4579.0,4578.3,1.57315167]
[1756389606764,0.4464,4578.9,4578.4,21.06]
[1756389606957,0.2184,4578.9,4578.4,21.06]
[1756389607265,7.2078,4579.0,4578.4,21.06]
[1756389607266,0.51046951,4578.8,4578.4,21.06]
[1756389607463,0.4464,4578.7,4578.4,21.5166]
[1756389607662,3.2078,4579.0,4578.4,23.08975167]
[1756389607867,0.4464,4579.1,4578.5,1.57315167]
[1756389608067,0.4464,4579.3,4578.5,1.57315167]
[1756389608257,0.4464,4579.1,4578.6,21.057]
[1756389608459,0.4464,4579.3,4578.6,21.057]
[1756389608663,0.4464,4579.1,4578.4,1.57315167]
[1756389608877,0.4464,4578.8,4578.2,21.055]
[1756389609062,0.51049001,4578.7,4578.2,21.055]
[1756389609364,0.51049293,4578.6,4578.2,21.055]
[1756389609665,3.2078,4578.4,4577.7,1.57315167]
[1756389609968,0.21841,4578.7,4577.4,16.097]
[1756389609969,3.2078,4577.9,4577.4,16.097]
[1756389610369,0.4464,4578.2,4577.5,0.4566]
[1756389610562,0.4464,4578.2,4577.5,2.02975167]
[1756389610761,3.2078,4578.4,4577.5,1.57315167]
[1756389610957,3.2078,4578.4,4577.0,1.96703736]
[1756389610958,3.2078,4577.7,4576.9,1.57315167]
[1756389611160,4.72888934,4578.3,4576.0,0.1707267]
[1756389611161,0.4464,4577.0,4576.0,1.57315167]
[1756389611358,0.4464,4576.4,4575.8,16.49015167]
[1756389611568,0.4464,4576.4,4575.8,15.3736]
[1756389611765,3.2078,4577.2,4576.1,1.57315167]
[1756389611958,0.51195016,4577.1,4576.5,0.4566]
[1756389612161,3.2078,4577.2,4576.6,21.048]
[1756389612365,3.2078,4577.2,4576.8,0.4566]
[1756389612366,0.4464,4577.1,4576.8,0.4566]
[1756389612671,0.4464,4577.1,4576.5,1.5738713]
[1756389612968,3.2078,4576.7,4576.5,13.891]
[1756389613162,0.4464,4576.6,4576.2,21.046]
[1756389613364,3.2078,4576.7,4576.2,21.5026]
[1756389613667,0.4464,4576.6,4575.9,1.5738713]
[1756389613971,2.724689,4579.3,4576.0,13.837]
[1756389613972,0.4464,4576.1,4576.0,13.837]
[1756389614270,0.4464,4576.1,4575.8,1.5738713]
[1756389614569,3.6542,4576.2,4575.6,22.6188713]
[1756389614764,3.2078,4576.2,4575.8,0.4566]
[1756389614957,0.4464,4576.1,4575.7,1.5738713]
[1756389615260,3.2078,4576.2,4575.8,21.043]
[1756389615464,0.4464,4576.1,4575.8,21.4996]
[1756389616069,3.2078,4576.2,4575.8,21.043]
[1756389616369,0.51173174,4576.1,4575.8,21.043]
[1756389616567,0.4464,4576.1,4575.8,21.043]
[1756389616960,0.4464,4576.1,4575.3,1.5738713]
[1756389617161,0.4464,4575.6,4575.0,33.0458713]
[1756389617372,3.2078,4575.7,4575.0,33.0458713]
[1756389617567,0.4464,4575.1,4575.0,33.0458713]
[1756389617767,0.4464,4575.1,4574.9,1.5738713]
[1756389617966,3.2078,4575.2,4574.8,22.6148713]
[1756389618165,0.4464,4575.1,4574.6,1.5738713]
[1756389618362,0.4464,4575.1,4573.8,2.75691954]
[1756389618363,3.2078,4574.7,4574.5,1.5738713]
[1756389618565,3.2078,4574.7,4574.6,17.6126]
[1756389618769,3.2078,4575.2,4574.7,0.4566]
[1756389619269,3.6542,4575.2,4574.8,21.038]
[1756389619469,3.6542,4575.2,4574.9,0.4566]
[1756389619664,3.2078,4575.2,4574.8,21.038]
[1756389619870,3.2078,4575.2,4575.1,2.0304713]
[1756389620075,3.2078,4575.9,4575.1,0.4566]
[1756389620274,3.2078,4575.9,4575.3,1.57423795]
[1756389620469,0.4464,4576.2,4575.6,0.4566]
[1756389620772,3.2078,4576.6,4576.0,1.57423795]
[1756389621169,3.6542,4576.6,4576.2,0.4566]
[1756389621374,3.6542,4576.6,4576.3,21.037]
[1756389621677,3.6542,4576.6,4576.0,1.57423795]
[1756389621678,0.4464,4576.5,4576.0,1.57423795]
[1756389621969,3.2078,4576.6,4576.2,21.037]
[1756389622171,0.4464,4576.5,4576.2,21.037]
[1756389622569,3.2078,4576.6,4576.2,22.61123795]
[1756389623069,3.2078,4577.1,4576.5,1.57423795]
[1756389623572,0.4464,4577.0,4576.4,22.60823795]
[1756389623872,0.4464,4576.4,4575.2,0.4566]
[1756389624077,3.2078,4576.0,4575.2,0.4566]
[1756389624277,3.6542,4576.0,4575.2,0.4566]
[1756389624480,3.2078,4576.0,4575.2,0.4566]
[1756389624774,3.2078,4575.4,4574.9,6.131]
[1756389624974,0.4464,4575.7,4574.9,6.131]
[1756389625175,0.4464,4575.7,4575.0,0.4566]
[1756389626271,3.2078,4576.0,4574.8,3.2078]
[1756389626475,0.50423839,4575.9,4574.9,12.59]
[1756389626776,0.4464,4575.7,4574.9,13.0466]
[1756389627370,3.2078,4576.0,4575.0,0.4566]
[1756389627575,3.2078,4576.0,4574.9,12.98342]
[1756389627772,3.2078,4576.0,4575.0,0.21856]
[1756389627967,3.2078,4576.0,4575.5,0.39337]
[1756389628174,3.2078,4576.0,4575.7,0.4566]
[1756389628372,3.2078,4576.6,4576.0,0.4566]
[1756389628779,3.2078,4576.6,4576.1,21.028]
[1756389628968,3.2078,4576.6,4576.2,0.4566]
[1756389629173,3.2078,4576.6,4576.1,21.028]
[1756389629467,3.2078,4576.6,4576.2,0.4566]
[1756389629874,3.2078,4576.6,4576.1,22.99503736]
[1756389630073,3.2078,4576.6,4576.2,0.4566]
[1756389630276,0.4464,4577.4,4576.4,3.2078]
[1756389630476,3.2078,4578.1,4577.3,0.4566]
[1756389630781,3.2078,4578.1,4577.5,0.4566]
[1756389630978,3.6542,4578.1,4577.5,0.4566]
[1756389631879,3.6542,4578.1,4577.6,21.024]
[1756389632179,3.2078,4578.1,4577.7,0.4566]
[1756389632782,3.6542,4579.1,4578.1,0.4566]
[1756389633376,0.4464,4578.5,4577.6,1.96703736]
[1756389633572,0.50216645,4578.4,4577.4,13.204]
[1756389633777,0.50203635,4578.3,4577.5,22.59247314]
[1756389633978,0.50203635,4578.2,4577.5,22.59247314]
[1756389634176,0.4464,4578.5,4577.5,22.59247314]
[1756389634376,0.4464,4578.0,4577.4,21.018]
[1756389634777,0.50205066,4577.9,4577.4,21.018]
[1756389634973,0.4464,4577.5,4577.3,21.016]
[1756389635277,0.4464,4577.5,4576.9,22.58947314]
[1756389635477,0.4464,4577.5,4576.9,21.016]
[1756389635880,0.4762,4577.3,4576.9,21.016]
[1756389636181,3.2078,4577.6,4577.0,0.4555]
[1756389636583,3.2078,4577.6,4577.0,2.02897314]
[1756389636979,3.2078,4577.6,4577.1,1.57347314]
[1756389637177,0.3932,4577.5,4577.4,0.4555]
[1756389637783,3.60099,4577.6,4577.4,2.02897314]
[1756389637982,3.60099,4577.6,4577.5,21.4675]
[1756389638678,3.60099,4577.6,4577.3,1.57347314]
[1756389638679,0.86941,4577.4,4577.3,1.57347314]
[1756389638881,0.86941,4577.4,4577.3,22.5836195]
[1756389639081,0.39321,4577.4,4577.3,21.4655]
[1756389639581,0.86941,4577.4,4577.3,21.01]
[1756389639884,0.39322,4577.2,4577.1,1.57363794]
[1756389640082,0.39322,4577.2,4577.1,2.02913794]
[1756389640481,0.86942,4577.2,4577.1,22.58163794]
[1756389640681,0.39322,4577.2,4577.0,1.57363794]
[1756389640884,0.39322,4577.2,4577.1,21.007]
[1756389641289,0.39322,4577.2,4577.1,23.03613794]
[1756389641491,0.39322,4577.2,4577.1,22.58063794]
[1756389641692,0.86942,4577.2,4577.1,21.007]
[1756389641885,0.86942,4577.2,4576.6,0.4555]
[1756389641886,3.2078,4577.6,4576.9,1.57363794]
[1756389642286,3.2078,4577.1,4577.0,14.436]
[1756389642488,3.2078,4577.1,4576.8,1.57363794]
[1756389642791,3.2078,4577.1,4576.5,1.57363794]
[1756389642992,0.4762,4577.0,4576.5,21.004]
[1756389643194,3.2078,4577.1,4576.5,21.004]
[1756389643488,3.2078,4577.1,4576.3,1.57363794]
[1756389643693,0.4762,4576.5,4575.9,21.003]
[1756389643993,0.4762,4576.0,4575.7,21.003]
[1756389644186,3.2078,4576.1,4575.7,21.003]
[1756389644492,3.2078,4576.1,4575.7,22.57663794]
[1756389644680,3.2078,4576.1,4575.8,0.4555]
[1756389644881,0.4762,4576.6,4575.8,0.4555]
[1756389645091,0.5020596,4576.5,4575.8,0.4555]
[1756389645287,0.4762,4576.6,4575.7,1.57363794]
[1756389645487,3.629,4578.8,4575.3,3.2078]
[1756389645488,0.4762,4576.1,4575.8,21.4565]
[1756389645690,3.2078,4576.2,4575.8,21.001]
[1756389645899,3.2078,4576.7,4575.9,0.4555]
[1756389646196,3.2078,4576.7,4576.1,1.57363794]
[1756389646490,3.2078,4576.2,4576.1,1.57363794]
[1756389646686,0.39334,4575.8,4575.7,1.57363794]
[1756389646885,0.39334,4575.8,4575.6,21.0]
[1756389646886,0.4762,4575.7,4575.6,21.0]
[1756389647086,0.39336,4575.6,4575.4,31.476]
[1756389647291,4.18582554,4575.7,4574.8,21.0]
[1756389647292,0.96786483,4575.5,4574.8,21.0]
[1756389647486,3.2078,4575.2,4574.8,21.0]
[1756389647793,0.4762,4575.1,4574.9,0.4555]
[1756389648090,3.2078,4575.2,4574.8,21.0]
[1756389648288,0.4762,4575.6,4574.9,0.4555]
[1756389648480,3.2078,4575.7,4574.8,22.57363794]
[1756389648481,3.2078,4575.7,4575.1,2.02913794]
[1756389648684,3.2078,4575.7,4574.8,21.0]
[1756389648685,3.2078,4575.7,4575.4,1.57363794]
[1756389648888,3.2078,4575.7,4575.6,0.4555]
[1756389649087,3.2078,4575.7,4575.1,1.57363794]
[1756389649088,0.4762,4575.6,4575.1,1.57363794]
[1756389649286,3.2078,4575.7,4575.0,1.57363794]
[1756389649494,0.4762,4575.6,4574.9,1.57363794]
[1756389649693,0.4762,4575.6,4574.8,1.57363794]
[1756389650390,0.4762,4575.6,4574.9,0.4555]
[1756389650584,3.2078,4575.2,4574.8,1.57363794]
[1756389650785,0.4762,4575.1,4574.9,0.4555]
[1756389651186,0.4762,4575.1,4574.8,1.57363794]
[1756389651388,0.4762,4575.1,4574.7,1.57363794]
[1756389651590,3.2078,4575.2,4574.6,1.57363794]
[1756389651793,3.684,4574.7,4574.5,1.57363794]
[1756389651991,0.4762,4574.6,4574.4,22.56963794]
[1756389652189,3.2078,4574.7,4574.3,1.57363794]
[1756389652392,3.2078,4574.7,4574.2,1.57363794]
[1756389652786,0.4762,4574.6,4574.0,1.57363794]
[1756389652986,0.4762,4574.1,4573.8,1.57363794]
[1756389653189,0.4762,4574.1,4573.4,1.57363794]
[1756389653494,0.4762,4573.4,4572.9,1.57363794]
[1756389653791,0.4762,4573.4,4572.6,15.197]
[1756389653792,0.4762,4572.9,4572.0,1.57363794]
[1756389653997,0.4762,4572.9,4571.6,1.96703736]
[1756389653998,0.4762,4572.4,4571.6,1.57363794]
[1756389654200,3.2078,4571.8,4571.2,2.02913794]
[1756389654505,0.4762,4571.2,4571.0,20.995]
[1756389654895,3.2078,4571.3,4571.0,20.995]
[1756389655090,3.684,4571.3,4571.1,0.4555]
[1756389655291,3.684,4571.3,4571.0,20.995]
[1756389655292,3.2078,4571.3,4571.0,20.995]
[1756389655486,0.4762,4571.2,4571.0,20.995]
[1756389656198,3.2078,4571.3,4571.0,20.995]
[1756389656699,3.2078,4571.3,4571.1,0.4555]
[1756389656998,0.4762,4571.2,4571.0,21.4505]
[1756389657194,3.2078,4571.3,4571.0,20.995]
[1756389657498,3.684,4571.3,4571.1,0.4555]
[1756389657698,0.4762,4571.2,4571.0,20.995]
[1756389658195,3.2078,4571.3,4571.1,0.4555]
[1756389658695,3.2078,4571.3,4571.0,20.995]
[1756389658891,3.2078,4571.3,4571.1,0.4555]
[1756389659395,3.2078,4571.8,4571.1,2.02913794]
[1756389660000,3.2078,4571.8,4571.2,20.998]
[1756389660200,3.2078,4571.8,4571.3,1.96736794]
[1756389660398,3.2078,4571.8,4571.4,20.998]
[1756389660694,0.4762,4571.7,4571.5,0.4555]
[1756389660901,3.2078,4571.8,4571.5,0.4555]
[1756389661288,0.4762,4571.7,4571.4,20.998]
[1756389661498,3.2078,4572.3,4571.5,0.4555]
[1756389661800,3.2078,4572.8,4572.1,1.57363794]
[1756389661994,3.2078,4572.8,4572.2,21.3895]
[1756389662302,0.39364,4572.4,4572.2,22.50763794]
[1756389662597,0.39364,4572.4,4572.3,21.4525]
[1756389663098,0.86984,4572.4,4572.3,20.997]
[1756389663300,0.39364,4572.4,4572.3,21.4525]
[1756389663497,3.2078,4572.8,4572.4,0.4555]
[1756389663697,3.2078,4573.8,4573.2,0.4555]
[1756389663998,0.39354,4573.5,4573.4,0.4555]
[1756389664188,0.39354,4573.5,4573.4,25.4515]
[1756389664392,3.2078,4573.8,4573.4,2.03041962]
[1756389664592,0.39354,4573.6,4573.5,22.57091962]
[1756389664796,3.2078,4574.4,4573.5,22.74400872]
[1756389665001,0.39347,4574.3,4574.0,1.57481299]
[1756389665188,0.39347,4574.3,4574.2,0.4555]
[1756389665589,0.86967,4574.3,4574.2,20.995]
[1756389665790,0.86969,4574.1,4574.0,1.57467281]
[1756389665994,0.82849,4574.1,4574.0,1.57467281]
[1756389666196,0.98376,4574.0,4573.3,1.57467281]
[1756389666403,0.39359,4572.9,4572.8,1.57467281]
[1756389666600,0.39359,4572.9,4572.8,2.04727281]
[1756389666895,0.98394,4573.1,4572.6,1.57467281]
[1756389667103,0.3936,4572.8,4572.7,20.993]
[1756389667297,0.3936,4572.8,4572.7,21.4656]
[1756389668299,0.3936,4572.8,4572.1,5.17483736]
[1756389668300,0.435,4572.7,4572.3,0.99483281]
[1756389668501,0.98417,4572.1,4571.2,0.4726]
[1756389668697,0.39373,4571.3,4571.2,0.4726]
[1756389669004,3.60153,4571.3,4571.2,21.4626]
[1756389669197,3.2078,4571.8,4571.2,21.4626]
[1756389669395,0.39373,4571.4,4571.2,20.99]
[1756389669605,0.39373,4571.4,4571.3,0.4726]
[1756389670703,0.98423,4571.8,4571.4,0.3356]
[1756389670909,0.39371,4571.5,4571.4,4.3356]
[1756389671100,0.39371,4571.5,4571.4,3.5434]
[1756389671404,0.98406,4572.6,4571.4,7.42655]
[1756389671601,0.39363,4572.5,4572.4,3.2078]
[1756389671800,0.98391,4573.3,4572.4,64.9968]
[1756389672002,0.39357,4573.2,4573.1,3.2078]
[1756389672205,0.39357,4573.2,4573.1,20.988]
[1756389672499,0.39357,4573.2,4573.1,20.46453]
[1756389672699,0.39359,4572.9,4572.8,1.96862675]
[1756389672906,0.39359,4572.9,4572.8,20.988]
[1756389673308,0.39362,4572.6,4572.5,40.8]
[1756389673507,0.39362,4572.6,4572.5,61.788]
[1756389673706,0.39362,4572.6,4572.5,65.788]
[1756389674003,0.39362,4572.6,4572.5,44.8]
[1756389674213,0.39362,4572.6,4572.5,65.787]
[1756389674711,0.39362,4572.6,4572.5,24.987]
[1756389675002,0.39362,4572.6,4572.5,4.0]
[1756389675201,0.98401,4572.8,4572.5,22.95391195]